[Event "*** Qualifier 1: Titled Tuesday 3|2 Blitz"]
[Site "Chess.com"]
[Date "2017.04.04"]
[Round "10"]
[White "MITerryble"]
[Black "sergiochess83"]
[Result "0-1"]
[WhiteElo "2722"]
[BlackElo "2700"]
[TimeControl "180+2"]
[EndTime "15:20:47 PDT"]
[Termination "sergiochess83 won on time"]

1. d4 {[%clk 0:02:59.8]} 1... Nf6 {[%clk 0:03:00.2]} 2. Nf3 {[%clk 0:03:01]}
2... g6 {[%clk 0:03:00.6]} 3. Bg5 {[%clk 0:03:02]} 3... Bg7 {[%clk 0:03:00.6]}
4. Nbd2 {[%clk 0:03:01.1]} 4... d5 {[%clk 0:02:52.1]} 5. c3 {[%clk 0:03:01.8]}
5... O-O {[%clk 0:02:51.7]} 6. e3 {[%clk 0:03:00.1]} 6... Nbd7 {[%clk
0:02:44.6]} 7. Be2 {[%clk 0:02:59.4]} 7... c5 {[%clk 0:02:45.6]} 8. O-O {[%clk
0:02:58.9]} 8... b6 {[%clk 0:02:46.9]} 9. a4 {[%clk 0:02:57.4]} 9... a6 {[%clk
0:02:43.3]} 10. b4 {[%clk 0:02:30.3]} 10... c4 {[%clk 0:02:27.2]} 11. Qc2 {[%clk
0:02:14.6]} 11... Bb7 {[%clk 0:02:07.3]} 12. Rfd1 {[%clk 0:02:05]} 12... b5
{[%clk 0:02:01.5]} 13. axb5 {[%clk 0:01:51.2]} 13... axb5 {[%clk 0:02:02.1]} 14.
Rxa8 {[%clk 0:01:49.5]} 14... Qxa8 {[%clk 0:02:02]} 15. Qb2 {[%clk 0:01:50.7]}
15... Bc6 {[%clk 0:01:53.5]} 16. Ra1 {[%clk 0:01:50.9]} 16... Qb7 {[%clk
0:01:54.6]} 17. h3 {[%clk 0:01:44.8]} 17... Ra8 {[%clk 0:01:47.6]} 18. Ra2
{[%clk 0:01:45.3]} 18... Nb6 {[%clk 0:01:46.6]} 19. Qa1 {[%clk 0:01:42.2]} 19...
Rxa2 {[%clk 0:01:43.2]} 20. Qxa2 {[%clk 0:01:42.4]} 20... Na4 {[%clk 0:01:42.7]}
21. Qa1 {[%clk 0:01:43.1]} 21... Ne4 {[%clk 0:01:39.8]} 22. Nxe4 {[%clk
0:01:39.9]} 22... dxe4 {[%clk 0:01:41.6]} 23. Nd2 {[%clk 0:01:39.5]} 23... e5
{[%clk 0:01:34.2]} 24. Bd1 {[%clk 0:01:34]} 24... Nb6 {[%clk 0:01:31.3]} 25. Qa5
{[%clk 0:01:23.3]} 25... h6 {[%clk 0:01:29.5]} 26. Bh4 {[%clk 0:01:18.6]} 26...
f5 {[%clk 0:01:19.3]} 27. Bg3 {[%clk 0:00:32.8]} 27... exd4 {[%clk 0:01:19.4]}
28. cxd4 {[%clk 0:00:30.4]} 28... Nd5 {[%clk 0:01:19.4]} 29. Bd6 {[%clk
0:00:23.9]} 29... Qd7 {[%clk 0:01:14.1]} 30. Bc5 {[%clk 0:00:25.1]} 30... Kh7
{[%clk 0:01:11.2]} 31. Qa3 {[%clk 0:00:18.4]} 31... h5 {[%clk 0:01:10.1]} 32.
Nb1 {[%clk 0:00:19.1]} 32... f4 {[%clk 0:01:07.8]} 33. Bc2 {[%clk 0:00:20.4]}
33... fxe3 {[%clk 0:01:07.2]} 34. fxe3 {[%clk 0:00:22]} 34... Bh6 {[%clk
0:01:06.8]} 35. Bxe4 {[%clk 0:00:21.8]} 35... Bxe3+ {[%clk 0:01:03.7]} 36. Kh1
{[%clk 0:00:23.1]} 36... Bh6 {[%clk 0:01:00.6]} 37. Qf3 {[%clk 0:00:21.4]} 37...
Qe6 {[%clk 0:00:56.3]} 38. Nc3 {[%clk 0:00:21]} 38... Nxc3 {[%clk 0:00:52.8]}
39. Bxc6 {[%clk 0:00:22.9]} 39... Qe1+ {[%clk 0:00:53.8]} 40. Kh2 {[%clk
0:00:24.1]} 40... Ne2 {[%clk 0:00:55.1]} 41. Qf7+ {[%clk 0:00:22.2]} 41... Bg7
{[%clk 0:00:56.2]} 42. d5 {[%clk 0:00:21.4]} 42... Qg3+ {[%clk 0:00:51.5]} 43.
Kh1 {[%clk 0:00:22.7]} 43... Qe1+ {[%clk 0:00:53.4]} 44. Kh2 {[%clk 0:00:23.6]}
44... c3 {[%clk 0:00:50.1]} 45. Bf2 {[%clk 0:00:18.2]} 45... Qd2 {[%clk
0:00:50.3]} 46. Be8 {[%clk 0:00:16.7]} 46... Nf4 {[%clk 0:00:39.5]} 47. Kg3
{[%clk 0:00:06.4]} 47... c2 {[%clk 0:00:36.1]} 0-1

[Event "*** Qualifier 1: Titled Tuesday 3|2 Blitz"]
[Site "Chess.com"]
[Date "2017.04.04"]
[Round "10"]
[White "wonderfultime"]
[Black "yian123"]
[Result "1-0"]
[WhiteElo "2661"]
[BlackElo "2414"]
[TimeControl "180+2"]
[EndTime "15:20:50 PDT"]
[Termination "wonderfultime won by resignation"]

1. d4 {[%clk 0:03:01.9]} 1... d5 {[%clk 0:02:59.3]} 2. c4 {[%clk 0:03:02.7]}
2... c6 {[%clk 0:02:58.4]} 3. Nc3 {[%clk 0:03:02.5]} 3... Nf6 {[%clk 0:02:59.1]}
4. e3 {[%clk 0:03:03.9]} 4... a6 {[%clk 0:02:59.9]} 5. Nf3 {[%clk 0:03:05.1]}
5... g6 {[%clk 0:03:01.4]} 6. Be2 {[%clk 0:03:04.2]} 6... Bg7 {[%clk 0:03:02.4]}
7. O-O {[%clk 0:03:05.5]} 7... O-O {[%clk 0:03:04]} 8. h3 {[%clk 0:03:06.9]}
8... dxc4 {[%clk 0:03:04.1]} 9. Bxc4 {[%clk 0:03:07.9]} 9... b5 {[%clk
0:03:05.6]} 10. Bd3 {[%clk 0:03:08.5]} 10... c5 {[%clk 0:03:05.6]} 11. dxc5
{[%clk 0:03:06.5]} 11... Nfd7 {[%clk 0:03:03.7]} 12. Be4 {[%clk 0:02:28.5]}
12... Ra7 {[%clk 0:03:02.9]} 13. Qc2 {[%clk 0:02:29.8]} 13... Rc7 {[%clk
0:02:14.9]} 14. Rd1 {[%clk 0:01:42.8]} 14... Rxc5 {[%clk 0:02:10.8]} 15. Qb3
{[%clk 0:01:44.1]} 15... e6 {[%clk 0:02:09.2]} 16. a4 {[%clk 0:01:39.8]} 16...
bxa4 {[%clk 0:02:06.1]} 17. Nxa4 {[%clk 0:01:39.4]} 17... Rb5 {[%clk 0:02:06.2]}
18. Qa3 {[%clk 0:01:40.6]} 18... Qc7 {[%clk 0:01:20.8]} 19. Bd2 {[%clk
0:01:36.2]} 19... Nf6 {[%clk 0:01:13.5]} 20. Bd3 {[%clk 0:01:33.7]} 20... Rd5
{[%clk 0:01:13.3]} 21. Rac1 {[%clk 0:01:29.2]} 21... Qd8 {[%clk 0:01:11.6]} 22.
Bc4 {[%clk 0:01:25.2]} 22... Rd6 {[%clk 0:01:01.2]} 23. Be2 {[%clk 0:01:13.4]}
23... Nc6 {[%clk 0:00:55.8]} 24. Be1 {[%clk 0:00:42.4]} 24... Rxd1 {[%clk
0:00:43.6]} 25. Rxd1 {[%clk 0:00:44.3]} 25... Qe7 {[%clk 0:00:28.6]} 26. Qc3
{[%clk 0:00:28]} 26... Bb7 {[%clk 0:00:26.6]} 27. Qc5 {[%clk 0:00:25.4]} 27...
Nd5 {[%clk 0:00:20.7]} 28. b3 {[%clk 0:00:25.6]} 28... a5 {[%clk 0:00:19.8]} 29.
Bc4 {[%clk 0:00:24.7]} 29... Ndb4 {[%clk 0:00:11.6]} 30. Qxe7 {[%clk 0:00:20.5]}
30... Nxe7 {[%clk 0:00:12.3]} 31. Rd7 {[%clk 0:00:22.1]} 31... Bxf3 {[%clk
0:00:13]} 32. gxf3 {[%clk 0:00:24]} 32... Nec6 {[%clk 0:00:14.6]} 33. f4 {[%clk
0:00:20.4]} 33... Rd8 {[%clk 0:00:15]} 34. Rxd8+ {[%clk 0:00:19.7]} 34... Nxd8
{[%clk 0:00:16.9]} 35. Nc5 {[%clk 0:00:21.2]} 35... Ndc6 {[%clk 0:00:16.5]} 36.
Nb7 {[%clk 0:00:22.3]} 36... Bf8 {[%clk 0:00:17.2]} 37. Bc3 {[%clk 0:00:22.2]}
37... Be7 {[%clk 0:00:18.3]} 38. Bb5 {[%clk 0:00:18.4]} 38... Kf8 {[%clk
0:00:18.9]} 39. Kg2 {[%clk 0:00:15.1]} 39... h5 {[%clk 0:00:19.4]} 40. Kf3
{[%clk 0:00:16.3]} 40... Na7 {[%clk 0:00:20.4]} 41. Ba4 {[%clk 0:00:16.3]} 41...
Nac6 {[%clk 0:00:20.5]} 42. Ke2 {[%clk 0:00:17.5]} 42... g5 {[%clk 0:00:18.7]}
43. fxg5 {[%clk 0:00:18]} 43... Bxg5 {[%clk 0:00:20.6]} 44. Nxa5 {[%clk
0:00:19.2]} 1-0

[Event "*** Qualifier 1: Titled Tuesday 3|2 Blitz"]
[Site "Chess.com"]
[Date "2017.04.04"]
[Round "10"]
[White "Bengalas"]
[Black "Goala"]
[Result "1/2-1/2"]
[WhiteElo "2452"]
[BlackElo "2311"]
[TimeControl "180+2"]
[EndTime "15:20:53 PDT"]
[Termination "Game drawn by repetition"]

1. d4 {[%clk 0:03:02]} 1... e6 {[%clk 0:03:01.4]} 2. c4 {[%clk 0:03:01.4]} 2...
Nf6 {[%clk 0:03:02.9]} 3. Nc3 {[%clk 0:03:01.4]} 3... c5 {[%clk 0:03:04.4]} 4.
d5 {[%clk 0:03:01.9]} 4... exd5 {[%clk 0:03:06.3]} 5. cxd5 {[%clk 0:03:02.9]}
5... d6 {[%clk 0:03:08]} 6. Nf3 {[%clk 0:03:02.8]} 6... g6 {[%clk 0:03:09.2]} 7.
Nd2 {[%clk 0:03:03.9]} 7... a6 {[%clk 0:03:10.4]} 8. a4 {[%clk 0:03:02.3]} 8...
Bg7 {[%clk 0:03:11.2]} 9. e4 {[%clk 0:03:02.2]} 9... O-O {[%clk 0:03:12.1]} 10.
Be2 {[%clk 0:03:02.9]} 10... Re8 {[%clk 0:03:12]} 11. O-O {[%clk 0:03:03.5]}
11... g5 {[%clk 0:03:04.9]} 12. Qc2 {[%clk 0:02:52.4]} 12... g4 {[%clk
0:02:59.6]} 13. b3 {[%clk 0:02:48.8]} 13... h5 {[%clk 0:02:54.7]} 14. Bb2 {[%clk
0:02:48.6]} 14... Nbd7 {[%clk 0:02:56]} 15. f4 {[%clk 0:02:40.3]} 15... gxf3
{[%clk 0:02:51.7]} 16. Nxf3 {[%clk 0:02:41.4]} 16... Ng4 {[%clk 0:02:50.8]} 17.
Qd3 {[%clk 0:02:15.3]} 17... Nde5 {[%clk 0:02:45.4]} 18. Nxe5 {[%clk 0:02:15.9]}
18... Bxe5 {[%clk 0:02:45.5]} 19. Bxg4 {[%clk 0:02:16.7]} 19... Bxg4 {[%clk
0:02:43.7]} 20. h3 {[%clk 0:02:16.1]} 20... Qh4 {[%clk 0:02:21.6]} 21. Nd1
{[%clk 0:02:06]} 21... Bxd1 {[%clk 0:02:12.4]} 22. Bxe5 {[%clk 0:02:05.9]} 22...
Rxe5 {[%clk 0:02:08.2]} 23. Raxd1 {[%clk 0:02:05.5]} 23... Qxe4 {[%clk
0:02:03.2]} 24. Qg3+ {[%clk 0:02:04.1]} 24... Qg6 {[%clk 0:02:04]} 25. Qxg6+
{[%clk 0:02:02]} 25... fxg6 {[%clk 0:02:04.7]} 26. Rf6 {[%clk 0:02:03.1]} 26...
Rd8 {[%clk 0:01:56.9]} 27. Rxg6+ {[%clk 0:02:04]} 27... Kh7 {[%clk 0:01:57.5]}
28. Rg3 {[%clk 0:01:59]} 28... Rde8 {[%clk 0:01:51]} 29. Rf3 {[%clk 0:01:30.1]}
29... Kg6 {[%clk 0:01:48.5]} 30. Rdf1 {[%clk 0:01:28]} 30... Rxd5 {[%clk
0:01:41.9]} 31. Rf6+ {[%clk 0:01:29]} 31... Kg5 {[%clk 0:01:41]} 32. h4+ {[%clk
0:00:47.9]} 32... Kxh4 {[%clk 0:01:25.8]} 33. Rg6 {[%clk 0:00:48]} 33... Rg5
{[%clk 0:00:38.4]} 34. Rxd6 {[%clk 0:00:39.9]} 34... Re2 {[%clk 0:00:31.6]} 35.
Rf4+ {[%clk 0:00:38.3]} 35... Kg3 {[%clk 0:00:32.7]} 36. Rf3+ {[%clk 0:00:37.9]}
36... Kh4 {[%clk 0:00:29.2]} 37. Rh3+ {[%clk 0:00:31.5]} 37... Kg4 {[%clk
0:00:29.1]} 38. Rf6 {[%clk 0:00:31.7]} 38... h4 {[%clk 0:00:22.6]} 39. Rf8
{[%clk 0:00:23.8]} 39... b5 {[%clk 0:00:19.4]} 40. axb5 {[%clk 0:00:23.8]} 40...
axb5 {[%clk 0:00:21.3]} 41. Kh2 {[%clk 0:00:22.3]} 41... c4 {[%clk 0:00:19.7]}
42. bxc4 {[%clk 0:00:22.3]} 42... bxc4 {[%clk 0:00:21.6]} 43. Rc8 {[%clk
0:00:21.5]} 43... Rc2 {[%clk 0:00:21.9]} 44. Rd8 {[%clk 0:00:16.3]} 44... Kh5
{[%clk 0:00:21.9]} 45. Rh8+ {[%clk 0:00:17]} 45... Kg6 {[%clk 0:00:22.2]} 46.
Rg8+ {[%clk 0:00:17.2]} 46... Kh5 {[%clk 0:00:19.2]} 47. Rh8+ {[%clk 0:00:15.8]}
47... Kg6 {[%clk 0:00:20.4]} 48. Rg8+ {[%clk 0:00:16.9]} 48... Kh5 {[%clk
0:00:21]} 49. Rh8+ {[%clk 0:00:18]} 49... Kg6 {[%clk 0:00:22.1]} 50. Rg8+ {[%clk
0:00:19.1]} 50... Kh5 {[%clk 0:00:22]} 51. Rh8+ {[%clk 0:00:16]} 51... Kg6
{[%clk 0:00:23.1]} 52. Rg8+ {[%clk 0:00:17]} 52... Kh5 {[%clk 0:00:24.4]} 53.
Rh8+ {[%clk 0:00:15.9]} 1/2-1/2

[Event "*** Qualifier 1: Titled Tuesday 3|2 Blitz"]
[Site "Chess.com"]
[Date "2017.04.04"]
[Round "10"]
[White "GM_Donatello"]
[Black "FearlessKing64"]
[Result "1-0"]
[WhiteElo "2510"]
[BlackElo "2097"]
[TimeControl "180+2"]
[EndTime "15:20:54 PDT"]
[Termination "GM_Donatello won on time"]

1. d4 {[%clk 0:03:02]} 1... Nf6 {[%clk 0:02:59.5]} 2. Bf4 {[%clk 0:03:01.9]}
2... d5 {[%clk 0:02:57.6]} 3. Nf3 {[%clk 0:03:00]} 3... e6 {[%clk 0:02:58.1]} 4.
e3 {[%clk 0:03:00]} 4... c5 {[%clk 0:02:59.1]} 5. c3 {[%clk 0:02:59.5]} 5... Nc6
{[%clk 0:03:00.3]} 6. Nbd2 {[%clk 0:03:00.6]} 6... Bd6 {[%clk 0:03:00.6]} 7. Bg3
{[%clk 0:03:01.7]} 7... a6 {[%clk 0:03:00.4]} 8. Bd3 {[%clk 0:02:58.5]} 8... Qe7
{[%clk 0:03:00.3]} 9. Ne5 {[%clk 0:02:55.6]} 9... Bd7 {[%clk 0:02:50.6]} 10. f4
{[%clk 0:02:52.1]} 10... O-O-O {[%clk 0:02:50.7]} 11. O-O {[%clk 0:02:45.9]}
11... g6 {[%clk 0:02:30.9]} 12. a3 {[%clk 0:02:41.1]} 12... Nh5 {[%clk 0:02:31]}
13. b4 {[%clk 0:02:38.3]} 13... c4 {[%clk 0:02:29]} 14. Bc2 {[%clk 0:02:38.2]}
14... f6 {[%clk 0:02:29.6]} 15. Nxd7 {[%clk 0:02:32.3]} 15... Rxd7 {[%clk
0:02:22]} 16. a4 {[%clk 0:02:33.4]} 16... Nxg3 {[%clk 0:02:19.5]} 17. hxg3
{[%clk 0:02:34]} 17... e5 {[%clk 0:02:21]} 18. b5 {[%clk 0:02:34.8]} 18... Nb8
{[%clk 0:02:21.8]} 19. bxa6 {[%clk 0:02:27.3]} 19... Nxa6 {[%clk 0:02:17]} 20.
Qe1 {[%clk 0:01:54.4]} 20... e4 {[%clk 0:02:10.5]} 21. g4 {[%clk 0:01:38.6]}
21... f5 {[%clk 0:02:07.1]} 22. g5 {[%clk 0:01:35.6]} 22... h6 {[%clk
0:02:08.2]} 23. gxh6 {[%clk 0:01:35.4]} 23... Rxh6 {[%clk 0:02:08.7]} 24. Kf2
{[%clk 0:01:32.5]} 24... Qh4+ {[%clk 0:02:09.3]} 25. Ke2 {[%clk 0:01:26.4]}
25... Qg4+ {[%clk 0:02:09.5]} 26. Kf2 {[%clk 0:01:27.3]} 26... Rh2 {[%clk
0:02:00.6]} 27. Rg1 {[%clk 0:01:27.5]} 27... Rdh7 {[%clk 0:01:32.8]} 28. Bd1
{[%clk 0:01:26.6]} 28... Qh4+ {[%clk 0:01:31.8]} 29. Kf1 {[%clk 0:01:27.9]}
29... Qh6 {[%clk 0:01:14.3]} 30. Qg3 {[%clk 0:01:23.1]} 30... Nc7 {[%clk
0:00:58.5]} 31. Be2 {[%clk 0:01:14.9]} 31... Ne6 {[%clk 0:00:59.4]} 32. Ke1
{[%clk 0:01:11.3]} 32... g5 {[%clk 0:01:00]} 33. Kd1 {[%clk 0:01:12.5]} 33...
gxf4 {[%clk 0:00:55]} 34. Qg8+ {[%clk 0:01:13.1]} 34... Kc7 {[%clk 0:00:56.3]}
35. a5 {[%clk 0:01:05.3]} 35... fxe3 {[%clk 0:00:42.2]} 36. a6 {[%clk 0:01:05]}
36... Nd8 {[%clk 0:00:20.9]} 37. a7 {[%clk 0:01:02.8]} 37... Rg7 {[%clk
0:00:18.9]} 38. Qxd5 {[%clk 0:00:56.3]} 38... Rhxg2 {[%clk 0:00:12.6]} 39. Rxg2
{[%clk 0:00:54.7]} 39... Rxg2 {[%clk 0:00:13.1]} 40. a8=Q {[%clk 0:00:54.4]}
40... Rxe2 {[%clk 0:00:14.3]} 41. Qxc4+ {[%clk 0:00:33.8]} 41... Kd7 {[%clk
0:00:11.9]} 42. Qxe2 {[%clk 0:00:32.4]} 42... exd2 {[%clk 0:00:11.1]} 43. Kc2
{[%clk 0:00:32.7]} 43... e3 {[%clk 0:00:08.2]} 44. Qb5+ {[%clk 0:00:33.3]} 44...
Ke7 {[%clk 0:00:08.9]} 45. Qxf5 {[%clk 0:00:33]} 45... e2 {[%clk 0:00:07.2]} 46.
Qe4+ {[%clk 0:00:33.7]} 46... Kd7 {[%clk 0:00:07.7]} 47. Qxe2 {[%clk 0:00:34.2]}
47... Qg6+ {[%clk 0:00:04.3]} 48. Qd3 {[%clk 0:00:35.2]} 48... Qg2 {[%clk
0:00:05.4]} 49. Rd1 {[%clk 0:00:32.7]} 49... Qc6 {[%clk 0:00:05.4]} 50. Rxd2
{[%clk 0:00:32.5]} 1-0

[Event "*** Qualifier 1: Titled Tuesday 3|2 Blitz"]
[Site "Chess.com"]
[Date "2017.04.04"]
[Round "10"]
[White "proxy6"]
[Black "GamayevOleg"]
[Result "0-1"]
[WhiteElo "2215"]
[BlackElo "2406"]
[TimeControl "180+2"]
[EndTime "15:20:58 PDT"]
[Termination "GamayevOleg won by resignation"]

1. e4 {[%clk 0:03:02]} 1... e6 {[%clk 0:02:59.8]} 2. d4 {[%clk 0:03:02.6]} 2...
d5 {[%clk 0:03:01.3]} 3. Nc3 {[%clk 0:03:04]} 3... Bb4 {[%clk 0:03:00]} 4. e5
{[%clk 0:03:04.9]} 4... c5 {[%clk 0:02:59.9]} 5. a3 {[%clk 0:03:06]} 5... Bxc3+
{[%clk 0:03:01.2]} 6. bxc3 {[%clk 0:03:07.9]} 6... Ne7 {[%clk 0:03:02.7]} 7. h4
{[%clk 0:03:09]} 7... Qa5 {[%clk 0:03:00]} 8. Bd2 {[%clk 0:03:09.5]} 8... Qa4
{[%clk 0:02:59.3]} 9. h5 {[%clk 0:03:10.6]} 9... cxd4 {[%clk 0:02:57.9]} 10. Rh4
{[%clk 0:03:04.4]} 10... Nbc6 {[%clk 0:02:57]} 11. Nf3 {[%clk 0:03:03.6]} 11...
Nf5 {[%clk 0:02:56.8]} 12. Rf4 {[%clk 0:03:04.4]} 12... Bd7 {[%clk 0:02:36.4]}
13. g4 {[%clk 0:03:03.1]} 13... Nfe7 {[%clk 0:02:37]} 14. cxd4 {[%clk 0:03:03]}
14... h6 {[%clk 0:02:28.6]} 15. Bd3 {[%clk 0:03:00.9]} 15... Na5 {[%clk
0:02:28.1]} 16. Bb4 {[%clk 0:02:52.1]} 16... Bb5 {[%clk 0:02:14]} 17. Nh4 {[%clk
0:02:36]} 17... Bxd3 {[%clk 0:02:05.5]} 18. Qxd3 {[%clk 0:02:35.6]} 18... Nac6
{[%clk 0:02:06.7]} 19. Rb1 {[%clk 0:02:08.6]} 19... b6 {[%clk 0:01:44.7]} 20.
Kd2 {[%clk 0:01:42.8]} 20... Rc8 {[%clk 0:01:40.3]} 21. Bd6 {[%clk 0:01:34.4]}
21... Na5 {[%clk 0:01:36.9]} 22. Rb4 {[%clk 0:01:20.1]} 22... Nc4+ {[%clk
0:01:17.6]} 23. Ke1 {[%clk 0:00:31.7]} 23... Qxa3 {[%clk 0:01:11.3]} 24. Qxa3
{[%clk 0:00:30.7]} 24... Nxa3 {[%clk 0:01:13.2]} 25. Ra4 {[%clk 0:00:31.8]}
25... Nxc2+ {[%clk 0:00:58.1]} 26. Kd2 {[%clk 0:00:30.3]} 26... a5 {[%clk
0:00:59.3]} 27. Ra2 {[%clk 0:00:20.1]} 27... Nb4 {[%clk 0:00:59.8]} 28. Bxb4
{[%clk 0:00:20]} 28... axb4 {[%clk 0:01:00.8]} 29. Ra6 {[%clk 0:00:14.8]} 29...
Rb8 {[%clk 0:00:57]} 30. Rf3 {[%clk 0:00:10.6]} 30... Nc6 {[%clk 0:00:53.3]} 31.
Rd3 {[%clk 0:00:09.6]} 31... Kd7 {[%clk 0:00:47.7]} 32. f4 {[%clk 0:00:09.4]}
32... Rhc8 {[%clk 0:00:48.3]} 33. f5 {[%clk 0:00:10.3]} 33... Na5 {[%clk
0:00:48.4]} 34. Ra7+ {[%clk 0:00:08.3]} 34... Rc7 {[%clk 0:00:49.1]} 35. Rxc7+
{[%clk 0:00:08.5]} 35... Kxc7 {[%clk 0:00:51]} 36. Kc2 {[%clk 0:00:09.3]} 36...
Kc6 {[%clk 0:00:46.1]} 37. Rg3 {[%clk 0:00:09.2]} 37... Kb5 {[%clk 0:00:44]} 38.
g5 {[%clk 0:00:10.5]} 38... Rc8+ {[%clk 0:00:41.5]} 39. Kb1 {[%clk 0:00:10.1]}
39... Nc6 {[%clk 0:00:37.3]} 40. g6 {[%clk 0:00:07.5]} 40... fxg6 {[%clk
0:00:34.5]} 41. fxe6 {[%clk 0:00:07.8]} 41... Nxd4 {[%clk 0:00:35.3]} 42. e7
{[%clk 0:00:08.9]} 42... g5 {[%clk 0:00:32.9]} 43. Ng6 {[%clk 0:00:08.6]} 43...
Re8 {[%clk 0:00:23.9]} 44. Rg2 {[%clk 0:00:05.5]} 44... Nc6 {[%clk 0:00:24.6]}
45. Rd2 {[%clk 0:00:05]} 45... Nxe7 {[%clk 0:00:25.5]} 46. Nxe7 {[%clk
0:00:05.5]} 46... Rxe7 {[%clk 0:00:27.4]} 47. Rxd5+ {[%clk 0:00:06.7]} 47... Kc4
{[%clk 0:00:28.9]} 48. Rd6 {[%clk 0:00:08.2]} 48... Rxe5 {[%clk 0:00:29.5]} 49.
Rxb6 {[%clk 0:00:09.5]} 49... Kb3 {[%clk 0:00:29]} 50. Kc1 {[%clk 0:00:08.9]}
50... g4 {[%clk 0:00:29.6]} 51. Rg6 {[%clk 0:00:09.3]} 51... Rg5 {[%clk
0:00:30.7]} 52. Rxg7 {[%clk 0:00:10.8]} 52... Rxg7 {[%clk 0:00:31.5]} 0-1

[Event "*** Qualifier 1: Titled Tuesday 3|2 Blitz"]
[Site "Chess.com"]
[Date "2017.04.04"]
[Round "10"]
[White "ecwinslow"]
[Black "jeaston1"]
[Result "1/2-1/2"]
[WhiteElo "2072"]
[BlackElo "2167"]
[TimeControl "180+2"]
[EndTime "15:21:11 PDT"]
[Termination "Game drawn - insufficient material"]

1. d4 {[%clk 0:03:02]} 1... d5 {[%clk 0:03:01]} 2. c4 {[%clk 0:03:01.7]} 2...
dxc4 {[%clk 0:03:02.4]} 3. e4 {[%clk 0:02:59.1]} 3... e5 {[%clk 0:03:02.5]} 4.
Nf3 {[%clk 0:02:57.6]} 4... exd4 {[%clk 0:03:03.7]} 5. Bxc4 {[%clk 0:02:58.7]}
5... Nc6 {[%clk 0:03:04.4]} 6. O-O {[%clk 0:02:58.5]} 6... Bc5 {[%clk
0:03:00.8]} 7. Nbd2 {[%clk 0:02:57.6]} 7... Bb6 {[%clk 0:02:53.2]} 8. Bb5 {[%clk
0:02:42]} 8... Bd7 {[%clk 0:02:50.3]} 9. Nb3 {[%clk 0:02:38.2]} 9... Nf6 {[%clk
0:02:50.5]} 10. e5 {[%clk 0:02:35.4]} 10... Nxe5 {[%clk 0:02:46.3]} 11. Re1
{[%clk 0:02:21.7]} 11... O-O {[%clk 0:02:38.8]} 12. Rxe5 {[%clk 0:02:18]} 12...
Ng4 {[%clk 0:01:55.8]} 13. Rg5 {[%clk 0:01:57.4]} 13... h6 {[%clk 0:01:50.2]}
14. Bxd7 {[%clk 0:01:54.2]} 14... Qxd7 {[%clk 0:01:51]} 15. Rh5 {[%clk
0:01:42.8]} 15... d3 {[%clk 0:01:47.5]} 16. Be3 {[%clk 0:01:39.6]} 16... Bxe3
{[%clk 0:01:34.7]} 17. fxe3 {[%clk 0:01:35.6]} 17... Nxe3 {[%clk 0:01:35.9]} 18.
Qd2 {[%clk 0:01:33.5]} 18... Nc4 {[%clk 0:01:34.6]} 19. Qc3 {[%clk 0:01:34.4]}
19... b5 {[%clk 0:01:30.6]} 20. Rd1 {[%clk 0:01:33.9]} 20... Ne3 {[%clk
0:01:14.2]} 21. Rd2 {[%clk 0:01:13.3]} 21... Rad8 {[%clk 0:01:14.8]} 22. Rh4
{[%clk 0:01:11.1]} 22... Rfe8 {[%clk 0:01:04.2]} 23. Rd4 {[%clk 0:01:05.8]}
23... Qf5 {[%clk 0:01:04.3]} 24. R4xd3 {[%clk 0:01:03.4]} 24... Rxd3 {[%clk
0:00:56.6]} 25. Qxd3 {[%clk 0:01:03.8]} 25... Qf4 {[%clk 0:00:48.6]} 26. Qxb5
{[%clk 0:00:56.6]} 26... Re6 {[%clk 0:00:40.5]} 27. Rd8+ {[%clk 0:00:44.4]}
27... Kh7 {[%clk 0:00:41.2]} 28. Qd3+ {[%clk 0:00:43.2]} 28... Rg6 {[%clk
0:00:41.5]} 29. Rd4 {[%clk 0:00:37]} 29... Nxg2 {[%clk 0:00:20.2]} 30. Qxg6+
{[%clk 0:00:32.8]} 30... Kxg6 {[%clk 0:00:19.7]} 31. Rxf4 {[%clk 0:00:34.2]}
31... Nxf4 {[%clk 0:00:21]} 32. Nc1 {[%clk 0:00:32.1]} 32... Kf5 {[%clk
0:00:21.3]} 33. Kf2 {[%clk 0:00:33.2]} 33... Ke4 {[%clk 0:00:22.2]} 34. Nd2+
{[%clk 0:00:33.7]} 34... Kd4 {[%clk 0:00:22.2]} 35. Kf3 {[%clk 0:00:34.9]} 35...
Nd5 {[%clk 0:00:22.9]} 36. Ke2 {[%clk 0:00:33.3]} 36... Nb4 {[%clk 0:00:23.2]}
37. a3 {[%clk 0:00:33.5]} 37... Nc6 {[%clk 0:00:23.7]} 38. Ncb3+ {[%clk
0:00:32.9]} 38... Kd5 {[%clk 0:00:25.2]} 39. Ke3 {[%clk 0:00:32.5]} 39... f5
{[%clk 0:00:26.1]} 40. Nf3 {[%clk 0:00:32.1]} 40... g5 {[%clk 0:00:26.6]} 41.
Nbd2 {[%clk 0:00:30.9]} 41... Na5 {[%clk 0:00:21.4]} 42. Kd3 {[%clk 0:00:31.5]}
42... c5 {[%clk 0:00:21.5]} 43. b4 {[%clk 0:00:31.6]} 43... Nb7 {[%clk
0:00:21.3]} 44. b5 {[%clk 0:00:31.9]} 44... Nd6 {[%clk 0:00:21.3]} 45. a4 {[%clk
0:00:31.7]} 45... g4 {[%clk 0:00:21]} 46. Nh4 {[%clk 0:00:32.5]} 46... f4 {[%clk
0:00:20.6]} 47. Ng2 {[%clk 0:00:31.9]} 47... c4+ {[%clk 0:00:19.7]} 48. Nxc4
{[%clk 0:00:31]} 48... Nxc4 {[%clk 0:00:20.1]} 49. Nxf4+ {[%clk 0:00:32]} 49...
Kc5 {[%clk 0:00:21.7]} 50. Ne6+ {[%clk 0:00:32.6]} 50... Kb4 {[%clk 0:00:22.9]}
51. Kd4 {[%clk 0:00:24.1]} 51... Nb6 {[%clk 0:00:24]} 52. Nc5 {[%clk 0:00:24.7]}
52... Nxa4 {[%clk 0:00:24.4]} 53. Ne4 {[%clk 0:00:22.5]} 53... Kxb5 {[%clk
0:00:25.2]} 54. Nf6 {[%clk 0:00:23.3]} 54... Nb6 {[%clk 0:00:25.6]} 55. Nxg4
{[%clk 0:00:24]} 55... h5 {[%clk 0:00:27.3]} 56. Nf6 {[%clk 0:00:24.8]} 56... h4
{[%clk 0:00:28.6]} 57. h3 {[%clk 0:00:26.1]} 57... a5 {[%clk 0:00:27.3]} 58. Ne4
{[%clk 0:00:26.4]} 58... a4 {[%clk 0:00:28.2]} 59. Nc3+ {[%clk 0:00:24.9]} 59...
Kb4 {[%clk 0:00:29.4]} 60. Nxa4 {[%clk 0:00:25.4]} 60... Nxa4 {[%clk 0:00:29.6]}
61. Ke5 {[%clk 0:00:24.2]} 61... Nc5 {[%clk 0:00:30.7]} 62. Kf5 {[%clk
0:00:23.4]} 62... Nd3 {[%clk 0:00:28.5]} 63. Kg4 {[%clk 0:00:23.1]} 63... Nf2+
{[%clk 0:00:30.4]} 64. Kxh4 {[%clk 0:00:24.1]} 64... Nxh3 {[%clk 0:00:32.3]}
1/2-1/2